fUST/lending_fUST_20250210
["ID","MTS","AMOUNT","RATE_DAILY","PERIOD"]
[352545224,1739159468349,-332.55886866,0.00013594,2]
[352545225,1739159468362,-501.6191126,0.00013698,14]
[352545226,1739159468371,-719.3,0.00013698,2]
[352545227,1739159468382,-1019.54,0.00013698,2]
[352545228,1739159468392,-732.17,0.00013698,2]
[352545229,1739159468402,-500.23501456,0.00013698,2]
[352545230,1739159468411,-733.41,0.00013698,2]
[352545231,1739159468422,-742.49,0.00013698,2]
[352545232,1739159468431,-500.0,0.00013698,2]
[352545233,1739159468441,-1187.85,0.00013698,2]
[352545234,1739159468451,-500.0,0.00013698,2]
[352545235,1739159468460,-694.28,0.00013698,2]
[352545236,1739159468470,-500.0,0.00013698,2]
[352545237,1739159468479,-705.99,0.00013698,2]
[352545238,1739159468489,-580.12,0.00013698,2]
[352545239,1739159468498,-1920.71,0.00013698,2]
[352545240,1739159468508,-500.0,0.00013698,2]
[352545241,1739159468516,-610.0,0.00013698,2]
[352545242,1739159468526,-1079.91,0.00013698,2]
[352545243,1739159468535,-653.91,0.00013698,2]
[352545244,1739159468545,-501.46,0.00013698,2]
[352545245,1739159468555,-3903.0,0.00013698,2]
[352545246,1739159468564,-3709.32,0.00013698,2]
[352545247,1739159468572,-151.0,0.00013698,2]
[352545248,1739159468580,-3719.6,0.00013698,2]
[352545249,1739159468590,-871.83,0.00013698,2]
[352545250,1739159468599,-2055.74,0.00013698,2]
[352545251,1739159468613,-1325.55,0.00013698,2]
[352545252,1739159468623,-760.18,0.00013698,2]
[352545253,1739159468634,-650.97,0.00013698,2]
[352545254,1739159468643,-14163.79,0.00013698,2]
[352545255,1739159468652,-26907.86,0.00013698,2]
[352545256,1739159468661,-1618.92,0.00013698,2]
[352545257,1739159468672,-2005.94,0.00013698,2]
[352545258,1739159468681,-704.77,0.00013698,2]
[352545259,1739159468691,-1456.37,0.00013698,2]
[352545260,1739159468700,-779.8,0.00013698,2]
[352545261,1739159468712,-500.0,0.00013698,2]
[352545262,1739159468722,-1919.7,0.00013698,2]
[352545263,1739159468731,-824.44,0.00013698,2]
[352545264,1739159468741,-1614.34,0.00013698,2]
[352545265,1739159468751,-500.0,0.00013698,2]
[352545266,1739159468760,-589.21,0.00013698,2]
[352545267,1739159468769,-1026.49,0.00013698,2]
[352545268,1739159468779,-746.76,0.00013698,2]
[352545269,1739159468788,-655.27,0.00013698,2]
[352545270,1739159468799,-2053.08,0.00013698,2]
[352545271,1739159468808,-2692.2,0.00013698,2]
[352545272,1739159468817,-1287.78,0.00013698,2]
[352545273,1739159468827,-1187.79,0.00013698,2]
[352545274,1739159468836,-732.99,0.00013698,2]
[352545275,1739159468846,-1000.7,0.00013698,2]
[352545276,1739159468857,-1242.99,0.00013698,2]
[352545277,1739159468866,-500.0,0.00013698,2]
[352545278,1739159468876,-521.05,0.00013698,2]
[352545279,1739159468886,-790.31,0.00013698,2]
[352545280,1739159468895,-510.08,0.00013698,2]
[352545281,1739159468905,-1045.63,0.00013698,2]
[352545282,1739159468915,-937.96,0.00013698,2]
[352545283,1739159468925,-3052.88,0.00013698,2]
[352545284,1739159468935,-679.89,0.00013698,2]
[352545285,1739159468944,-315.35780795,0.00013698,2]
[352545286,1739159468954,-6790.26,0.00013698,2]
[352545287,1739159468964,-1017.48,0.00013698,2]
[352545288,1739159468973,-706.11,0.00013698,2]
[352545289,1739159468982,-3458.8,0.00013698,2]
[352545290,1739159468992,-2559.959587,0.00013699,2]
[352545291,1739159469001,-2802.7050222,0.00013699,2]
[352545292,1739159469011,-205.7082591,0.00013699,2]
[352545293,1739159469020,-1373.699141,0.00013699,2]
[352545294,1739159469030,-523.13032133,0.00013699,2]
[352545295,1739159469039,-1278.85495595,0.00013699,2]
[352545296,1739159469049,-213.55391939,0.00013699,2]
[352545297,1739159469058,-1278.85495595,0.00013699,2]
[352545298,1739159469068,-1278.85495595,0.00013699,2]
[352545299,1739159469078,-500.0,0.00013699,2]
[352545300,1739159469087,-1278.85495595,0.00013699,2]
[352545301,1739159469097,-1278.85495595,0.00013699,2]
[352545302,1739159469107,-1278.85495595,0.00013699,2]
[352545303,1739159469116,-1278.85495595,0.00013699,2]
[352545304,1739159469126,-1278.85495595,0.00013699,2]
[352545305,1739159469136,-1278.85495595,0.00013699,2]
[352545306,1739159469146,-1278.85495595,0.00013699,2]
[352545307,1739159469155,-1278.85495595,0.00013699,2]
[352545308,1739159469165,-1278.85495595,0.00013699,2]
[352545309,1739159469175,-1278.85495595,0.00013699,2]
[352545310,1739159469185,-1278.85495595,0.00013699,2]
[352545311,1739159469195,-1278.85495595,0.00013699,2]
[352545312,1739159469205,-1278.85495595,0.00013699,2]
[352545313,1739159469214,-1278.85495595,0.00013699,2]
[352545314,1739159469224,-1278.85495595,0.00013699,2]
[352545315,1739159469234,-1278.85495595,0.00013699,2]
[352545316,1739159469244,-1278.85495595,0.00013699,2]
[352545317,1739159469254,-1278.85495595,0.00013699,2]
[352545318,1739159469264,-1278.85495595,0.00013699,2]
[352545319,1739159469275,-1278.85495595,0.00013699,2]
[352545320,1739159469285,-1278.85495595,0.00013699,2]
[352545321,1739159469295,-1278.85495595,0.00013699,2]
[352545322,1739159469306,-1278.85495595,0.00013699,2]
[352545323,1739159469317,-1278.85495595,0.00013699,2]
[352545324,1739159469327,-1278.85495595,0.00013699,2]
[352545325,1739159469338,-1278.85495595,0.00013699,2]
[352545326,1739159469347,-1278.85495595,0.00013699,2]
[352545327,1739159469360,-1278.85495595,0.00013699,2]
[352545328,1739159469371,-1278.85495595,0.00013699,2]
[352545329,1739159469380,-1278.85495595,0.00013699,2]
[352545330,1739159469390,-1278.85495595,0.00013699,2]
[352545331,1739159469399,-1278.85495595,0.00013699,2]
[352545332,1739159469410,-1278.85495595,0.00013699,2]
[352545333,1739159469420,-1278.85495595,0.00013699,2]
[352545334,1739159469430,-1278.85495595,0.00013699,2]
[352545335,1739159469440,-1278.85495595,0.00013699,2]
[352545336,1739159469450,-1278.85495595,0.00013699,2]
[352545337,1739159469460,-1278.85495595,0.00013699,2]
[352545338,1739159469470,-1278.85495595,0.00013699,2]
[352545339,1739159469480,-1278.85495595,0.00013699,2]
[352545340,1739159469489,-1278.85495595,0.00013699,2]
[352545341,1739159469499,-1278.85495595,0.00013699,2]
[352545342,1739159469508,-1278.85495595,0.00013699,2]
[352545343,1739159469518,-1278.85495595,0.00013699,2]
[352545344,1739159469528,-1278.85495595,0.00013699,2]
[352545345,1739159469538,-1278.85495595,0.00013699,2]
[352545346,1739159469548,-1278.85495595,0.00013699,2]
[352545347,1739159469558,-1278.85495595,0.00013699,2]
[352545348,1739159469567,-1278.85495595,0.00013699,2]
[352545349,1739159469577,-1278.85495595,0.00013699,2]
[352545350,1739159469587,-1278.85495595,0.00013699,2]
[352545351,1739159469596,-1278.85495595,0.00013699,2]
[352545352,1739159469608,-1278.85495595,0.00013699,2]
[352545353,1739159469617,-1278.85495595,0.00013699,2]
[352545354,1739159469627,-1252.5255892,0.00013699,2]
[352545355,1739159469641,-1252.5255892,0.00013699,2]
[352545356,1739159469651,-1252.5255892,0.00013699,2]
[352545357,1739159469660,-1252.5255892,0.00013699,2]
[352545358,1739159469671,-1252.5255892,0.00013699,2]
[352545359,1739159469682,-1252.5255892,0.00013699,2]
[352545360,1739159469691,-1252.5255892,0.00013699,2]
[352545361,1739159469701,-1252.5255892,0.00013699,2]
[352545362,1739159469712,-1252.5255892,0.00013699,2]
[352545363,1739159469722,-1252.5255892,0.00013699,2]
[352545364,1739159469731,-1252.5255892,0.00013699,2]
[352545365,1739159469742,-1252.5255892,0.00013699,2]
[352545366,1739159469752,-1252.5255892,0.00013699,2]
[352545367,1739159469761,-1252.5255892,0.00013699,2]
[352545368,1739159469771,-1252.5255892,0.00013699,2]
[352545369,1739159469780,-1252.5255892,0.00013699,2]
[352545370,1739159469790,-1252.5255892,0.00013699,2]
[352545371,1739159469799,-1252.5255892,0.00013699,2]
[352545372,1739159469809,-1252.5255892,0.00013699,2]
[352545373,1739159469818,-1252.5255892,0.00013699,2]
[352545374,1739159469827,-1252.5255892,0.00013699,2]
[352545375,1739159469836,-1252.5255892,0.00013699,2]
[352545376,1739159469846,-1252.5255892,0.00013699,2]
[352545377,1739159469860,-1252.5255892,0.00013699,2]
[352545378,1739159469869,-1252.5255892,0.00013699,2]
[352545379,1739159469879,-1252.5255892,0.00013699,2]
[352545380,1739159469887,-1252.5255892,0.00013699,2]
[352545381,1739159469897,-1252.5255892,0.00013699,2]
[352545382,1739159469906,-1252.5255892,0.00013699,2]
[352545383,1739159469915,-1252.5255892,0.00013699,2]
[352545384,1739159469924,-1252.5255892,0.00013699,2]
[352545385,1739159469934,-151.0,0.00013699,2]
[352545386,1739159470018,-1252.52558924,0.00013699,2]
[352545387,1739159470037,-1252.52558924,0.00013699,2]
[352545388,1739159470047,-1252.52558924,0.00013699,2]
[352545389,1739159470063,-151.238251,0.00013699,2]
[352545390,1739159470072,-151.120933,0.00013699,2]
[352545391,1739159470081,-188.591507,0.00013699,2]
[352545392,1739159470091,-151.0,0.00013699,2]
[352545393,1739159470101,-188.591507,0.00013699,2]
[352545394,1739159470114,-151.538454,0.00013699,2]
[352545395,1739159470124,-151.0,0.00013699,2]
[352545396,1739159470133,-151.0,0.00013699,2]
[352545397,1739159470142,-2303.99661224,0.00013716,2]
[352545398,1739159470152,-531.26523494,0.00013765,2]
[352545399,1739159470162,-1500.0,0.00013765,2]
[352545400,1739159470171,-872.43024915,0.0001382,2]
[352545401,1739159470180,-160.05648958,0.00013834,2]
[352545402,1739159470190,-719.3,0.00013835,2]
[352545403,1739159470199,-1019.54,0.00013835,2]
[352545404,1739159470209,-732.17,0.00013835,2]
[352545405,1739159470219,-733.41,0.00013835,2]
[352545406,1739159470228,-742.49,0.00013835,2]
[352545407,1739159470239,-151.0,0.00013835,2]
[352545408,1739159470248,-500.0,0.00013835,2]
[352545409,1739159470258,-1187.85,0.00013835,2]
[352545410,1739159470267,-500.0,0.00013835,2]
[352545411,1739159470276,-694.28,0.00013835,2]
[352545412,1739159470286,-500.0,0.00013835,2]
[352545413,1739159470296,-705.99,0.00013835,2]
[352545414,1739159470306,-109.05484424,0.00013835,2]
[352545415,1739159470426,-82.41789076,0.00013835,2]
[352545416,1739159470438,-215.811479,0.00013835,2]
[352545417,1739159470448,-580.12,0.00013835,2]
[352545418,1739159470457,-215.811479,0.00013835,2]
[352545419,1739159470467,-1920.71,0.00013835,2]
[352545420,1739159470476,-500.0,0.00013835,2]
[352545421,1739159470486,-409.255933,0.00013835,2]
[352545422,1739159470496,-409.255933,0.00013835,2]
[352545423,1739159470506,-610.0,0.00013835,2]
[352545424,1739159470515,-1079.91,0.00013835,2]
[352545425,1739159470525,-653.91,0.00013835,2]
[352545426,1739159470534,-501.46,0.00013835,2]
[352545427,1739159470544,-3903.0,0.00013835,2]
[352545428,1739159470553,-3709.32,0.00013835,2]
[352545429,1739159470564,-3719.6,0.00013835,2]
[352545430,1739159470573,-871.83,0.00013835,2]
[352545431,1739159470583,-2055.74,0.00013835,2]
[352545432,1739159470592,-1325.55,0.00013835,2]
[352545433,1739159470602,-760.18,0.00013835,2]
[352545434,1739159470615,-650.97,0.00013835,2]
[352545435,1739159470624,-14163.79,0.00013835,2]
[352545436,1739159470638,-26907.86,0.00013835,2]
[352545437,1739159470647,-1618.92,0.00013835,2]
[352545438,1739159470656,-2005.94,0.00013835,2]
[352545439,1739159470667,-704.77,0.00013835,2]
[352545440,1739159470676,-1456.37,0.00013835,2]
[352545441,1739159470685,-779.8,0.00013835,2]
[352545442,1739159470695,-500.0,0.00013835,2]
[352545443,1739159470706,-1919.7,0.00013835,2]
[352545444,1739159470716,-824.44,0.00013835,2]
[352545445,1739159470725,-1614.34,0.00013835,2]
[352545446,1739159470735,-214.73044086,0.00013835,2]
[352545447,1739159470744,-589.21,0.00013835,2]
[352545448,1739159470754,-1026.49,0.00013835,2]
[352545449,1739159470763,-746.76,0.00013835,2]
[352545450,1739159470773,-655.27,0.00013835,2]
[352545451,1739159470783,-2053.08,0.00013835,2]
[352545452,1739159470792,-2692.2,0.00013835,2]
[352545453,1739159470802,-215.460446,0.00013835,2]
[352545454,1739159470811,-1287.78,0.00013835,2]
[352545455,1739159470820,-1187.79,0.00013835,2]
[352545456,1739159470829,-732.99,0.00013835,2]
[352545457,1739159470839,-1000.7,0.00013835,2]
[352545458,1739159470848,-1242.99,0.00013835,2]
[352545459,1739159470858,-616.17095926,0.00013835,2]
[352545460,1739159470867,-521.05,0.00013835,2]
[352545461,1739159470876,-790.31,0.00013835,2]
[352545462,1739159470886,-510.08,0.00013835,2]
[352545463,1739159470895,-1045.63,0.00013835,2]
[352545464,1739159470904,-937.96,0.00013835,2]
[352545465,1739159470914,-3052.88,0.00013835,2]
[352545466,1739159470923,-679.89,0.00013835,2]
[352545467,1739159470932,-6790.26,0.00013835,2]
[352545468,1739159470941,-1017.48,0.00013835,2]
[352545469,1739159470950,-706.11,0.00013835,2]
[352545470,1739159470959,-3458.8,0.00013835,2]
[352545471,1739159470969,-502.68088923,0.00013896,2]
[352545472,1739159470978,-151.960599,0.00013896,2]
[352545473,1739159470987,-761.572,0.00013972,2]
[352545474,1739159470996,-719.3,0.00013972,2]
[352545475,1739159471006,-1019.54,0.00013972,2]
[352545476,1739159471016,-151.0,0.00013972,2]
[352545477,1739159471026,-732.17,0.00013972,2]
[352545478,1739159471035,-733.41,0.00013972,2]
[352545479,1739159471046,-742.49,0.00013972,2]
[352545480,1739159471055,-181.18462284,0.00013972,2]
[352545481,1739159471064,-1187.85,0.00013972,2]
[352545482,1739159471073,-350.15822142,0.00013972,2]
[352545483,1739159471083,-694.28,0.00013972,2]
[352545484,1739159471092,-366.03,0.00013972,2]
[352545485,1739159471102,-705.99,0.00013972,2]
[352545486,1739159471114,-580.12,0.00013972,2]
[352545487,1739159471123,-1920.71,0.00013972,2]
[352545488,1739159471132,-613.62,0.00013972,2]
[352545489,1739159471141,-610.0,0.00013972,2]
[352545490,1739159471151,-1079.91,0.00013972,2]
[352545491,1739159471160,-653.91,0.00013972,2]
[352545492,1739159471169,-501.46,0.00013972,2]
[352545493,1739159471179,-151.0,0.00013972,2]
[352545494,1739159471188,-3903.0,0.00013972,2]
[352545495,1739159471199,-3709.32,0.00013972,2]
[352545496,1739159471208,-3719.6,0.00013972,2]
[352545497,1739159471218,-871.83,0.00013972,2]
[352545498,1739159471228,-2055.74,0.00013972,2]
[352545499,1739159471237,-1325.55,0.00013972,2]
[352545500,1739159471247,-760.18,0.00013972,2]
[352545501,1739159471256,-650.97,0.00013972,2]
[352545502,1739159471265,-14163.79,0.00013972,2]
[352545503,1739159471275,-26907.86,0.00013972,2]
[352545504,1739159471284,-1618.92,0.00013972,2]
[352545505,1739159471293,-2005.94,0.00013972,2]
[352545506,1739159471303,-704.77,0.00013972,2]
[352545507,1739159471312,-1456.37,0.00013972,2]
[352545508,1739159471321,-779.8,0.00013972,2]
[352545509,1739159471332,-500.0,0.00013972,2]
[352545510,1739159471341,-1919.7,0.00013972,2]
[352545511,1739159471350,-824.44,0.00013972,2]
[352545512,1739159471362,-1614.34,0.00013972,2]
[352545513,1739159471371,-589.21,0.00013972,2]
[352545514,1739159471381,-1026.49,0.00013972,2]
[352545515,1739159471391,-746.76,0.00013972,2]
[352545516,1739159471401,-655.27,0.00013972,2]
[352545517,1739159471410,-2053.08,0.00013972,2]
[352545518,1739159471420,-2692.2,0.00013972,2]
[352545519,1739159471429,-1287.78,0.00013972,2]
[352545520,1739159471438,-1187.79,0.00013972,2]
[352545521,1739159471447,-732.99,0.00013972,2]
[352545522,1739159471456,-1000.7,0.00013972,2]
[352545523,1739159471465,-1242.99,0.00013972,2]
[352545524,1739159471475,-521.05,0.00013972,2]
[352545525,1739159471485,-790.31,0.00013972,2]
[352545526,1739159471495,-510.08,0.00013972,2]
[352545527,1739159471505,-1045.63,0.00013972,2]
[352545528,1739159471514,-937.96,0.00013972,2]
[352545529,1739159471524,-3052.88,0.00013972,2]
[352545530,1739159471534,-679.89,0.00013972,2]
[352545531,1739159471544,-6790.26,0.00013972,2]
[352545532,1739159471554,-1017.48,0.00013972,2]
[352545533,1739159471563,-706.11,0.00013972,2]
[352545534,1739159471572,-3458.8,0.00013972,2]
[352545535,1739159471582,-2145.97,0.00014,2]
[352545536,1739159471592,-819.526347,0.00014,2]
[352545537,1739159471601,-819.526347,0.00014,2]
[352545538,1739159471614,-151.0,0.00014,2]
[352545539,1739159471625,-159.683901,0.00014,2]
[352545540,1739159471635,-151.602746,0.00014,2]
[352545541,1739159471644,-151.0,0.00014,2]
[352545542,1739159471654,-719.41,0.00014109,2]
[352545543,1739159471663,-1019.73,0.00014109,2]
[352545544,1739159471673,-732.22660605,0.00014109,2]
[352545545,1739159471683,-733.64602959,0.00014109,2]
[352545546,1739159471693,-742.62,0.00014109,2]
[352545547,1739159471703,-1188.0,0.00014109,2]
[352545548,1739159471715,-694.43,0.00014109,2]
[352545549,1739159471725,-706.1645936,0.00014109,2]
[352545550,1739159471735,-580.19203277,0.00014109,2]
[352545551,1739159471745,-1920.75,0.00014109,2]
[352545552,1739159471755,-610.23435508,0.00014109,2]
[352545553,1739159471765,-1080.13,0.00014109,2]
[352545554,1739159471775,-653.91,0.00014109,2]
[352545555,1739159471784,-501.63379571,0.00014109,2]
[352545556,1739159471794,-3903.06,0.00014109,2]
[352545557,1739159471804,-3709.54,0.00014109,2]
[352545558,1739159471813,-3719.74328897,0.00014109,2]
[352545559,1739159471823,-872.01,0.00014109,2]
[352545560,1739159471833,-2055.83,0.00014109,2]
[352545561,1739159471843,-1325.74,0.00014109,2]
[352545562,1739159471854,-760.21380174,0.00014109,2]
[352545563,1739159471869,-651.13057273,0.00014109,2]
[352545564,1739159471879,-14164.01,0.00014109,2]
[352545565,1739159471888,-26908.07961325,0.00014109,2]
[352545566,1739159471897,-1619.03,0.00014109,2]
[352545567,1739159471908,-2006.03,0.00014109,2]
[352545568,1739159471918,-704.92,0.00014109,2]
[352545569,1739159471927,-1456.4,0.00014109,2]
[352545570,1739159471937,-779.96,0.00014109,2]
[352545571,1739159471947,-365.91344976,0.00014109,2]
[352545572,1739159471957,-1919.77,0.00014109,2]
[352545573,1739159471966,-824.62,0.00014109,2]
[352545574,1739159471976,-1614.56,0.00014109,2]
[352545575,1739159471985,-589.34702275,0.00014109,2]
[352545576,1739159471994,-1026.6,0.00014109,2]
[352545577,1739159472005,-746.82,0.00014109,2]
[352545578,1739159472015,-655.38167494,0.00014109,2]
[352545579,1739159472025,-2053.28,0.00014109,2]
[352545580,1739159472034,-2692.26,0.00014109,2]
[352545581,1739159472043,-1288.0,0.00014109,2]
[352545582,1739159472053,-1188.02,0.00014109,2]
[352545583,1739159472063,-733.22,0.00014109,2]
[352545584,1739159472073,-1000.82,0.00014109,2]
[352545585,1739159472083,-1243.18,0.00014109,2]
[352545586,1739159472093,-521.24821648,0.00014109,2]
[352545587,1739159472103,-790.34,0.00014109,2]
[352545588,1739159472116,-151.0,0.00014109,2]
[352545589,1739159472125,-510.10063326,0.00014109,2]
[352545590,1739159472135,-1045.67,0.00014109,2]
[352545591,1739159472145,-938.09,0.00014109,2]
[352545592,1739159472155,-3053.01,0.00014109,2]
[352545593,1739159472165,-680.05,0.00014109,2]
[352545594,1739159472175,-6790.39792237,0.00014109,2]
[352545595,1739159472185,-1017.57,0.00014109,2]
[352545596,1739159472194,-706.12181488,0.00014109,2]
[352545597,1739159472204,-3458.87,0.00014109,2]
[352545598,1739159472214,-332.55886866,0.00014186,2]
[352545599,1739159472223,-151.0,0.000142,2]
[352545600,1739159472233,-12815.9952308,0.00014558,2]
[352545601,1739159472243,-151.0,0.000146,2]
[352545602,1739159472253,-700.0,0.00014755,2]
[352545603,1739159472262,-501.0,0.00014755,2]
[352545604,1739159472272,-332.55886866,0.00014779,2]
[352545605,1739159472282,-500.1,0.00014876,3]
[352545606,1739159472291,-310000.6069,0.00015,2]
[352545607,1739159472302,-501.0,0.00015,5]
[352545608,1739159472311,-500.1,0.00015,2]
[352545609,1739159472321,-151.0,0.00015,2]
[352545610,1739159472331,-151.0,0.00015,2]
[352545611,1739159472341,-188.591507,0.00015,2]
[352545612,1739159472351,-151.0,0.00015,2]
[352545613,1739159472363,-188.591507,0.00015,2]
[352545614,1739159472373,-151.0,0.00015,2]
[352545615,1739159472383,-152.194097,0.00015,2]
[352545616,1739159472393,-151.0,0.00015,2]
[352545617,1739159472503,-191.472735,0.00015,2]
[352545618,1739159472513,-215.811479,0.00015,2]
[352545619,1739159472523,-215.811479,0.00015,2]
[352545620,1739159472533,-819.526347,0.00015,2]
[352545621,1739159472542,-819.526347,0.00015,2]
[352545622,1739159472552,-409.255933,0.00015,2]
[352545623,1739159472561,-409.255933,0.00015,2]
[352545624,1739159472570,-151.0,0.00015,2]
[352545625,1739159472580,-151.0,0.00015,2]
[352545626,1739159472590,-156.406718,0.00015,2]
[352545627,1739159472599,-645.54039,0.00015054,2]
[352545628,1739159472610,-1000.0,0.00015062,2]
[352545629,1739159472620,-166.0,0.00015068,2]
[352545630,1739159472631,-646.0,0.00015095,2]
[352545631,1739159472642,-332.55886866,0.00015371,2]
[352545632,1739159472652,-437.0,0.000155,5]
[352545633,1739159472662,-153.705,0.0001596,2]
[352545634,1739159472671,-332.55886866,0.00015963,2]
[352545635,1739159472682,-3000.0,0.00016,2]
[352545636,1739159472692,-3000.0,0.0001601,2]
[352545637,1739159472702,-3000.0,0.0001602,2]
[352545638,1739159472712,-3000.0,0.0001603,2]
[352545639,1739159472723,-3000.0,0.0001604,2]
[352545640,1739159472732,-3000.0,0.0001605,2]
[352545641,1739159472742,-3000.0,0.0001606,2]
[352545642,1739159472752,-3000.0,0.0001607,2]
[352545643,1739159472762,-3000.0,0.0001608,2]
[352545644,1739159472771,-3000.0,0.0001609,2]
[352545645,1739159472781,-3000.0,0.000161,2]
[352545646,1739159472791,-3000.0,0.0001611,2]
[352545647,1739159472801,-3000.0,0.0001612,2]
[352545648,1739159472810,-700.0,0.00016125,2]
[352545649,1739159472820,-3000.0,0.0001613,2]
[352545650,1739159472829,-3000.0,0.0001614,2]
[352545651,1739159472838,-2880.10349833,0.0001615,2]
[352545652,1739159472853,-119.89650167,0.0001615,2]
[352545653,1739159472864,-3000.0,0.0001616,2]
[352545654,1739159472874,-263.602,0.0001616,2]
[352545655,1739159472883,-538.052,0.0001616,2]
[352545656,1739159472893,-1971.0,0.0001616,2]
[352545657,1739159472903,-2300.736,0.0001616,2]
[352545658,1739159472912,-247.0,0.0001616,2]
[352545659,1739159472922,-479.072,0.0001616,2]
[352545660,1739159472932,-749.12,0.00016164,2]
[352545661,1739159472941,-3000.0,0.0001617,2]
[352545662,1739159472951,-3000.0,0.0001618,2]
[352545663,1739159472960,-151.0,0.0001618,2]
[352545664,1739159472971,-3000.0,0.0001619,2]
[352545665,1739159472981,-3000.0,0.000162,2]
[352545666,1739159472991,-3000.0,0.0001621,2]
[352545667,1739159473000,-2764.0852708,0.0001622,2]
[352545668,1739159473012,-2141.8069802,0.0001622,2]
[352545669,1739159473022,-161.938608,0.0001632,3]
[352545670,1739159473031,-151.0,0.00016373,2]
[352545671,1739159473040,-500.0,0.00016438,2]
[352545672,1739159473050,-151.357,0.00016468,2]
[352545673,1739159473060,-309.0,0.0001649,2]
[352545674,1739159473069,-3004.28459905,0.000165,2]
[352545675,1739159473078,-225.29,0.00016509,2]
[352545676,1739159473088,-332.55886866,0.00016556,2]
[352545677,1739159473098,-158.65,0.00016567,2]
[352545678,1739159473108,-199.7575573,0.00016632,2]
[352545679,1739159473119,-160.0,0.00016763,2]
[352545680,1739159473129,-160.0,0.00016763,2]
[352545681,1739159473139,-160.0,0.00016763,2]
[352545682,1739159473148,-162.98,0.00016763,2]
[352545683,1739159473159,-182.47963605,0.00016799,2]
[352545684,1739159473168,-475.93250723,0.000168,2]
[352545685,1739159473180,-1238.74465607,0.000168,2]
[352545686,1739159473191,-12912.81018537,0.000168,2]
[352545687,1739159473402,-17.42141832,0.00010958,2]
[352545688,1739159473415,-482.57858168,0.00010958,2]
[352545689,1739159473425,-500.0,0.00010958,2]
[352545690,1739159473435,-500.0,0.00010958,2]
[352545691,1739159473445,-500.0,0.00011095,2]
[352545692,1739159473454,-500.0,0.00011095,2]
[352545693,1739159473464,-500.0,0.00011095,2]
[352545694,1739159473475,-500.0,0.00011232,2]
[352545695,1739159473485,-500.0,0.00011369,2]
[352545696,1739159473495,-500.0,0.00011506,2]
[352545697,1739159473505,-500.0,0.00011643,2]
[352545698,1739159473515,-10188.75,0.00012602,2]
[352545699,1739159473526,-10188.75,0.00012739,2]
[352545700,1739159473537,-5048.89002637,0.00012876,2]
[352545701,1739159473931,-425.17763451,0.00010958,2]
[352545702,1739159473941,-519.37989805,0.00010958,2]
[352545703,1739159473951,-405.87887383,0.00010958,2]
[352545704,1739159474119,-197.41028394,0.00010858,2]
[352545705,1739159474129,-96.03589619,0.00010958,2]
[352545706,1739159474139,-500.0,0.00010958,2]
[352545707,1739159474148,-500.0,0.00010958,2]
[352545708,1739159474158,-500.0,0.00010958,2]
[352545709,1739159474167,-500.0,0.00010958,2]
[352545710,1739159474176,-638.75,0.00010959,2]
[352545711,1739159474186,-500.0,0.00011095,2]
[352545712,1739159474195,-500.0,0.00011095,2]
[352545713,1739159474205,-500.0,0.00011095,2]
[352545714,1739159474215,-500.0,0.00011232,2]
[352545715,1739159474224,-500.0,0.00011232,2]
[352545716,1739159474234,-500.0,0.00011232,2]
[352545717,1739159474244,-500.0,0.00011232,2]
[352545718,1739159474254,-500.0,0.00011232,2]
[352545719,1739159474264,-500.0,0.00011369,2]
[352545720,1739159474274,-579.2424811,0.00011369,2]
[352545721,1739159474283,-500.0,0.00011369,2]
[352545722,1739159474293,-281.22814296,0.00011369,2]
[352545723,1739159474303,-500.0,0.00011369,2]